fUSD/lending_fUSD_20241011
["ID","MTS","AMOUNT","RATE_DAILY","PERIOD"]
[340147817,1728679865932,-629.99876534,0.0003836,120]
[340147818,1728679865942,-629.99876534,0.0003836,120]
[340147819,1728679865951,-629.99876534,0.0003836,120]
[340147820,1728679865960,-629.99876534,0.0003836,120]
[340147821,1728679865969,-629.99876534,0.0003836,120]
[340147822,1728679865978,-629.99876534,0.0003836,120]
[340147823,1728679865987,-630.49,0.0003836,120]
[340147824,1728679865996,-150.0,0.00038397,7]
[340147825,1728679866005,-163.67422948,0.000384,2]
[340147826,1728679866014,-1500.0,0.000384,2]
[340147827,1728679866023,-1000.0,0.00038466,120]
[340147828,1728679866032,-150.0,0.00038547,7]
[340147829,1728679866041,-150.0,0.00038561,7]
[340147830,1728679866050,-150.0,0.00038561,7]
[340147831,1728679866059,-150.0,0.00038697,7]
[340147832,1728679866068,-403.89,0.00038757,2]
[340147833,1728679866077,-150.0,0.00038847,7]
[340147834,1728679866086,-150.0,0.00038847,7]
[340147835,1728679866095,-3000.0,0.000389,2]
[340147836,1728679866103,-500.0,0.00038904,30]
[340147837,1728679866113,-500.0,0.00038904,30]
[340147838,1728679866122,-500.0,0.00038904,7]
[340147839,1728679866131,-500.0,0.00038904,30]
[340147840,1728679866140,-500.0,0.00038904,30]
[340147841,1728679866149,-526.5,0.00038904,30]
[340147842,1728679866158,-500.0,0.00038904,30]
[340147843,1728679866167,-500.0,0.00038904,30]
[340147844,1728679866176,-506.08,0.00038904,30]
[340147845,1728679866185,-500.0,0.00038904,30]
[340147846,1728679866195,-2441.6,0.00038904,30]
[340147847,1728679866204,-500.0,0.00038904,30]
[340147848,1728679866213,-500.0,0.00038904,30]
[340147849,1728679866222,-500.0,0.00038904,30]
[340147850,1728679866231,-150.0,0.00038943,7]
[340147851,1728679866240,-150.0,0.00038943,7]
[340147852,1728679866250,-157.74,0.00038965,2]
[340147853,1728679866259,-150.0,0.00038997,7]
[340147854,1728679866269,-150.94,0.00039,2]
[340147855,1728679866277,-150.94,0.00039,2]
[340147856,1728679866287,-150.94,0.00039,2]
[340147857,1728679866297,-150.94,0.00039,2]
[340147858,1728679866305,-150.94,0.00039,2]
[340147859,1728679866316,-150.94,0.00039,2]
[340147860,1728679866325,-150.94,0.00039,2]
[340147861,1728679866336,-150.94,0.00039,2]
[340147862,1728679866345,-150.94,0.00039,2]
[340147863,1728679866354,-150.94,0.00039,2]
[340147864,1728679866363,-150.94,0.00039,2]
[340147865,1728679866373,-150.94,0.00039,2]
[340147866,1728679866383,-150.94,0.00039,2]
[340147867,1728679866391,-150.94,0.00039,2]
[340147868,1728679866400,-150.94,0.00039,2]
[340147869,1728679866410,-150.94,0.00039,2]
[340147870,1728679866420,-150.94,0.00039,2]
[340147871,1728679866429,-150.94,0.00039,2]
[340147872,1728679866439,-150.94,0.00039,2]
[340147873,1728679866448,-150.94,0.00039,2]
[340147874,1728679866457,-150.94,0.00039,2]
[340147875,1728679866468,-150.94,0.00039,2]
[340147876,1728679866478,-150.94,0.00039,2]
[340147877,1728679866488,-150.94,0.00039,2]
[340147878,1728679866497,-150.94,0.00039,2]
[340147879,1728679866506,-150.94,0.00039,2]
[340147880,1728679866516,-150.94,0.00039,2]
[340147881,1728679866525,-150.94,0.00039,2]
[340147882,1728679866618,-150.94,0.00039,2]
[340147883,1728679866627,-150.94,0.00039,2]
[340147884,1728679866636,-150.94,0.00039,2]
[340147885,1728679866645,-150.94,0.00039,2]
[340147886,1728679866654,-150.94,0.00039,2]
[340147887,1728679866663,-150.94,0.00039,2]
[340147888,1728679866672,-150.94,0.00039,2]
[340147889,1728679866682,-150.94,0.00039,2]
[340147890,1728679866691,-150.94,0.00039,2]
[340147891,1728679866700,-150.94,0.00039,2]
[340147892,1728679866709,-120.96355172,0.00039,2]
[340147893,1728679866722,-29.97644828,0.00039,2]
[340147894,1728679866731,-150.94,0.00039,2]
[340147895,1728679866740,-150.94,0.00039,2]
[340147896,1728679866749,-150.94,0.00039,2]
[340147897,1728679866758,-150.94,0.00039,2]
[340147898,1728679866767,-150.94,0.00039,2]
[340147899,1728679866776,-150.94,0.00039,2]
[340147900,1728679866785,-150.94,0.00039,2]
[340147901,1728679866794,-150.94,0.00039,2]
[340147902,1728679866803,-150.94,0.00039,2]
[340147903,1728679866812,-150.94,0.00039,2]
[340147904,1728679866821,-500.0,0.00039128,120]
[340147905,1728679866829,-150.0,0.00039147,7]
[340147906,1728679866839,-150.0,0.00039197,7]
[340147907,1728679866847,-150.0,0.00039297,7]
[340147908,1728679866856,-150.0,0.00039324,7]
[340147909,1728679866865,-150.0,0.00039324,7]
[340147910,1728679866874,-150.0,0.00039447,7]
[340147911,1728679866883,-150.0,0.00039597,7]
[340147912,1728679866892,-150.0,0.00039706,7]
[340147913,1728679866901,-150.0,0.00039706,7]
[340147914,1728679866912,-342.75168633,0.00039726,30]
[340147915,1728679866921,-500.0,0.00039726,30]
[340147916,1728679866934,-518.01723114,0.00039726,7]
[340147917,1728679866944,-500.0,0.00039726,30]
[340147918,1728679866954,-500.0,0.00039726,30]
[340147919,1728679866964,-526.5,0.00039726,30]
[340147920,1728679866975,-500.0,0.00039726,30]
[340147921,1728679866984,-500.0,0.00039726,30]
[340147922,1728679866992,-506.08,0.00039726,30]
[340147923,1728679867002,-500.0,0.00039726,30]
[340147924,1728679867012,-2441.6,0.00039726,30]
[340147925,1728679867021,-500.0,0.00039726,30]
[340147926,1728679867032,-577.24476779,0.00039726,30]
[340147927,1728679867041,-500.0,0.00039726,30]
[340147928,1728679867051,-150.0,0.00039747,7]
[340147929,1728679867062,-223.2,0.000398,31]
[340147930,1728679867071,-150.0,0.00039897,7]
[340147931,1728679867081,-150.0,0.00039897,7]
[340147932,1728679867091,-800.0,0.000399,5]
[340147933,1728679867100,-347.18,0.00039964,120]
[340147934,1728679867110,-500.0,0.00039999,31]
[340147935,1728679867119,-500.0,0.00039999,31]
[340147936,1728679867132,-248.50505674,0.00039999,31]
[340147937,1728679867143,-228.49366372,0.00039999,31]
[340147938,1728679867152,-509.0,0.0004,30]
[340147939,1728679867161,-1000.0,0.0004,30]
[340147940,1728679867169,-1012.0,0.0004,5]
[340147941,1728679867178,-2013.42212511,0.0004,120]
[340147942,1728679867187,-5567.16349419,0.0004,120]
[340147943,1728679867203,-30000.0,0.0004,120]
[340147944,1728679867212,-4574.20728245,0.0004,120]
[340147945,1728679867225,-418.03805559,0.0004,120]
[340147946,1728679867238,-637.75466196,0.0004,120]
[340147947,1728679867248,-150.0,0.0004,120]
[340147948,1728679867259,-164.195762,0.0004,5]
[340147949,1728679867268,-150.0,0.0004,2]
[340147950,1728679867278,-150.0,0.00040047,7]
[340147951,1728679867287,-150.0,0.00040088,7]
[340147952,1728679867296,-150.0,0.00040088,7]
[340147953,1728679867305,-150.0,0.00040155,120]
[340147954,1728679867314,-150.0,0.00040197,7]
[340147955,1728679867324,-150.0,0.00040347,7]
[340147956,1728679867334,-150.0,0.0004047,7]
[340147957,1728679867344,-150.0,0.0004047,7]
[340147958,1728679867353,-150.0,0.00040497,7]
[340147959,1728679867363,-134.07107748,0.0004051,30]
[340147960,1728679867376,-82.92892252,0.0004051,30]
[340147961,1728679867393,-500.0,0.00040547,30]
[340147962,1728679867402,-344.29858851,0.00040547,30]
[340147963,1728679867423,-155.70141149,0.00040547,30]
[340147964,1728679867440,-500.0,0.00040547,30]
[340147965,1728679867454,-526.5,0.00040547,30]
[340147966,1728679867471,-500.0,0.00040547,30]
[340147967,1728679867487,-177.24611221,0.00040547,30]
[340147968,1728679867502,-505.32760389,0.00040547,30]
[340147969,1728679867522,-0.75239611,0.00040547,30]
[340147970,1728679867536,-500.0,0.00040547,30]
[340147971,1728679867551,-161.93069551,0.00040547,30]
[340147972,1728679867570,-2279.66930449,0.00040547,30]
[340147973,1728679867582,-500.0,0.00040547,30]
[340147974,1728679867596,-500.0,0.00040547,30]
[340147975,1728679867612,-150.0,0.00040597,7]
[340147976,1728679867627,-150.0,0.00040647,7]
[340147977,1728679867643,-500.0,0.00040739,120]
[340147978,1728679867659,-150.0,0.00040756,120]
[340147979,1728679867670,-150.0,0.00040797,7]
[340147980,1728679867684,-150.0,0.00040852,7]
[340147981,1728679867700,-150.0,0.00040852,7]
[340147982,1728679867713,-158.36913737,0.000409,120]
[340147983,1728679867729,-150.0,0.00040947,7]
[340147984,1728679867742,-150.0,0.00040947,7]
[340147985,1728679867753,-150.0,0.00040956,2]
[340147986,1728679867767,-7222.9692368,0.00040972,2]
[340147987,1728679867780,-183.66611,0.00040972,14]
[340147988,1728679867793,-285.541522,0.00040972,14]
[340147989,1728679867806,-285.541522,0.00040972,14]
[340147990,1728679867818,-1435.29630273,0.00040999,40]
[340147991,1728679867830,-421.13652748,0.00041,120]
[340147992,1728679867846,-489.17891229,0.00041,120]
[340147993,1728679867872,-500.0,0.00030684,2]
[340147994,1728679867884,-500.0,0.00035616,2]
[340147995,1728679867897,-3503.46066958,0.00041,120]
[340147996,1728679867908,-3965.13409099,0.00041,120]
[340147997,1728679867919,-292.41000014,0.00041,120]
[340147998,1728679867931,-394.357,0.00041,120]
[340147999,1728679867943,-714.13926867,0.00041,120]
[340148000,1728679867954,-573.21934277,0.00041,120]
[340148001,1728679867965,-597.01017384,0.00041,120]
[340148002,1728679867976,-2400.47475159,0.00041,120]
[340148003,1728679867987,-4101.25526566,0.00041,120]
[340148004,1728679868001,-818.06656972,0.00041,120]
[340148005,1728679868012,-269.5,0.00041,120]
[340148006,1728679868023,-2857.79942523,0.00041,120]
[340148007,1728679868036,-1637.29710056,0.00041,120]
[340148008,1728679868048,-982.24203917,0.00041,120]
[340148009,1728679868061,-384.644286,0.00041,120]
[340148010,1728679868072,-628.31545513,0.00041,120]
[340148011,1728679868083,-10671.35912118,0.00041,120]
[340148012,1728679868092,-403.89,0.0004102,2]
[340148013,1728679868101,-150.0,0.00041033,2]
[340148014,1728679868110,-150.0,0.00041052,2]
[340148015,1728679868120,-150.0,0.00041084,2]
[340148016,1728679868130,-150.0,0.00041093,2]
[340148017,1728679868139,-2625.0,0.00041095,2]
[340148018,1728679868148,-151.0,0.00041095,14]
[340148019,1728679868158,-301.913608,0.00041095,14]
[340148020,1728679868167,-356.001912,0.00041095,14]
[340148021,1728679868177,-356.001912,0.00041095,14]
[340148022,1728679868187,-151.0,0.00041095,14]
[340148023,1728679868196,-500.0,0.00041095,60]
[340148024,1728679868205,-500.0,0.00041095,60]
[340148025,1728679868214,-500.0,0.00041095,60]
[340148026,1728679868223,-500.0,0.00041095,60]
[340148027,1728679868232,-447.847353,0.00041095,60]
[340148028,1728679868241,-600.0,0.00041095,2]
[340148029,1728679868250,-600.0,0.00041095,2]
[340148030,1728679868259,-600.0,0.00041095,2]
[340148031,1728679868267,-600.0,0.00041095,2]
[340148032,1728679868276,-600.0,0.00041095,2]
[340148033,1728679868285,-600.0,0.00041095,2]
[340148034,1728679868294,-600.0,0.00041095,2]
[340148035,1728679868304,-729.80306571,0.00041095,2]
[340148036,1728679868313,-157.0,0.00041096,2]
[340148037,1728679868322,-150.0,0.00041097,30]
[340148038,1728679868334,-150.0,0.00041137,2]
[340148039,1728679868343,-150.0,0.00041143,2]
[340148040,1728679868353,-150.0,0.00041146,2]
[340148041,1728679868599,-150.0,0.00041166,2]
[340148042,1728679868613,-150.0,0.00041166,2]
[340148043,1728679868625,-150.0,0.00041203,2]
[340148044,1728679868634,-150.0,0.00041218,2]
[340148045,1728679868644,-150.0,0.00041233,30]
[340148046,1728679868653,-150.0,0.00041233,30]
[340148047,1728679868662,-150.0,0.00041247,30]
[340148048,1728679868671,-154.027241,0.00041257,14]
[340148049,1728679868679,-151.0,0.00041257,14]
[340148050,1728679868688,-151.0,0.00041257,14]
[340148051,1728679868697,-151.0,0.00041257,14]
[340148052,1728679868706,-151.0,0.00041257,14]
[340148053,1728679868715,-151.0,0.00041257,14]
[340148054,1728679868724,-150.0,0.00041267,2]
[340148055,1728679868734,-150.0,0.00041276,2]
[340148056,1728679868743,-151.0,0.00041285,14]
[340148057,1728679868752,-150.0,0.00041285,2]
[340148058,1728679868760,-150.0,0.00041287,2]
[340148059,1728679868770,-150.0,0.00041288,2]
[340148060,1728679868779,-150.0,0.0004129,2]
[340148061,1728679868787,-17.04248666,0.00041316,2]
[340148062,1728679868799,-132.95751334,0.00041316,2]
[340148063,1728679868808,-150.0,0.00041335,2]
[340148064,1728679868817,-150.0,0.0004134,2]
[340148065,1728679868827,-579.7662343,0.00041341,2]
[340148066,1728679868836,-150.0,0.00041342,2]
[340148067,1728679868846,-150.0,0.00041351,2]
[340148068,1728679868856,-150.0,0.00041354,2]
[340148069,1728679868867,-150.0,0.00041355,2]
[340148070,1728679868877,-150.0,0.00041362,2]
[340148071,1728679868886,-500.0,0.00041369,30]
[340148072,1728679868896,-500.0,0.00041369,30]
[340148073,1728679868906,-500.0,0.00041369,30]
[340148074,1728679868916,-526.5,0.00041369,30]
[340148075,1728679868926,-500.0,0.00041369,30]
[340148076,1728679868935,-506.08,0.00041369,30]
[340148077,1728679868945,-500.0,0.00041369,30]
[340148078,1728679868954,-2441.6,0.00041369,30]
[340148079,1728679868964,-196.85671273,0.00041369,30]
[340148080,1728679868975,-500.0,0.00041369,30]
[340148081,1728679868985,-150.0,0.00041372,2]
[340148082,1728679868996,-150.0,0.00041375,2]
[340148083,1728679869005,-150.0,0.00041375,2]
[340148084,1728679869014,-150.0,0.0004138,2]
[340148085,1728679869024,-150.0,0.00041383,2]
[340148086,1728679869033,-150.0,0.00041393,2]
[340148087,1728679869042,-150.0,0.00041394,2]
[340148088,1728679869052,-150.0,0.00041397,30]
[340148089,1728679869062,-150.0,0.00041399,2]
[340148090,1728679869071,-111.00514595,0.000414,2]
[340148091,1728679869201,-6673.07001217,0.00023789,2]
[340148092,1728679869210,-166.577191,0.00027397,7]
[340148093,1728679869219,-521.03022645,0.00028219,2]
[340148094,1728679869229,-166.577191,0.00028219,7]
[340148095,1728679869238,-500.0,0.00031506,2]
[340148096,1728679869249,-500.0,0.00032328,2]
[340148097,1728679869260,-500.0,0.0003315,2]
[340148098,1728679869269,-500.0,0.00033972,2]
[340148099,1728679869278,-500.0,0.00034794,2]
[340148100,1728679869288,-500.0,0.00035616,2]
[340148101,1728679869297,-500.0,0.00036438,2]
[340148102,1728679869306,-500.0,0.00036438,2]
[340148103,1728679869317,-500.0,0.0003726,2]
[340148104,1728679869327,-500.0,0.0003726,2]
[340148105,1728679869337,-500.0,0.00038082,2]
[340148106,1728679869347,-500.0,0.00038904,30]
[340148107,1728679869357,-500.0,0.00039726,30]
[340148108,1728679869367,-500.0,0.00040547,30]
[340148109,1728679869376,-317.60969759,0.00041369,30]
[340148110,1728679869388,-38.99485405,0.000414,2]
[340148111,1728679869397,-150.0,0.00041404,2]
[340148112,1728679869408,-150.0,0.00041408,2]
[340148113,1728679869417,-259.0660843,0.00041415,2]
[340148114,1728679869427,-150.0,0.00041419,2]
[340148115,1728679869437,-150.0,0.00041433,2]
[340148116,1728679869448,-150.0,0.00041441,2]
[340148117,1728679869457,-3297.4954166,0.00041447,2]
[340148118,1728679869467,-150.0,0.00041451,2]
[340148119,1728679869476,-150.0,0.00041456,2]
[340148120,1728679869485,-150.0,0.00041465,2]
[340148121,1728679869494,-150.0,0.0004147,2]
[340148122,1728679869504,-150.0,0.00041472,2]
[340148123,1728679869514,-150.0,0.00041475,2]
[340148124,1728679869525,-5754.1282392,0.0004148,60]
[340148125,1728679869537,-150.0,0.00041483,2]
[340148126,1728679869546,-150.0,0.00041489,2]
[340148127,1728679869555,-150.0,0.00041491,2]
[340148128,1728679869565,-150.0,0.00041495,2]
[340148129,1728679869575,-150.0,0.00041509,2]
[340148130,1728679869584,-150.0,0.00041513,2]
[340148131,1728679869593,-150.0,0.00041521,2]
[340148132,1728679869603,-150.0,0.00041531,2]
[340148133,1728679869614,-150.0,0.00041531,2]
[340148134,1728679869623,-150.0,0.00041533,2]
[340148135,1728679869633,-150.0,0.00041536,2]
[340148136,1728679869644,-150.0,0.00041547,2]
[340148137,1728679869654,-150.0,0.00041547,30]
[340148138,1728679869664,-150.0,0.0004155,2]
[340148139,1728679869674,-150.0,0.00041551,2]
[340148140,1728679869683,-150.0,0.00041558,2]
[340148141,1728679869700,-150.0,0.00041564,2]
[340148142,1728679869709,-150.0,0.00041565,2]
[340148143,1728679869719,-150.0,0.00041576,2]
[340148144,1728679869728,-150.0,0.00041576,2]
[340148145,1728679869737,-150.0,0.00041579,2]
[340148146,1728679869746,-150.0,0.00041583,2]
[340148147,1728679869755,-150.0,0.0004159,2]
[340148148,1728679869765,-150.0,0.00041592,2]
[340148149,1728679869774,-2163.0,0.000416,2]
[340148150,1728679869783,-150.0,0.00041601,2]
[340148151,1728679869793,-150.0,0.00041602,2]
[340148152,1728679869803,-150.0,0.00041608,2]
[340148153,1728679869813,-150.0,0.00041615,30]
[340148154,1728679869822,-150.0,0.00041615,30]
[340148155,1728679869831,-150.0,0.00041619,2]
[340148156,1728679869840,-150.0,0.00041622,2]
[340148157,1728679869850,-150.0,0.00041627,2]
[340148158,1728679869860,-150.0,0.00041639,2]
[340148159,1728679869870,-150.0,0.00041669,2]
[340148160,1728679869879,-150.0,0.00041673,2]
[340148161,1728679869890,-150.0,0.00041682,2]
[340148162,1728679869899,-150.0,0.00041684,2]
[340148163,1728679869909,-150.0,0.00041686,2]
[340148164,1728679869919,-150.0,0.00041693,2]
[340148165,1728679869929,-150.0,0.00041697,30]
[340148166,1728679869939,-300.0,0.000417,2]
[340148167,1728679869949,-150.0,0.0004171,2]
[340148168,1728679869958,-150.0,0.00041713,2]
[340148169,1728679869968,-150.0,0.00041715,2]
[340148170,1728679869978,-150.0,0.00041729,2]
[340148171,1728679869987,-150.0,0.00041731,2]
[340148172,1728679869996,-150.0,0.00041736,2]
[340148173,1728679870006,-150.0,0.00041744,2]
[340148174,1728679870016,-150.0,0.00041745,2]
[340148175,1728679870026,-150.0,0.0004175,2]
[340148176,1728679870037,-150.0,0.0004175,2]
[340148177,1728679870048,-150.0,0.00041752,2]
[340148178,1728679870057,-150.0,0.00041764,2]
[340148179,1728679870067,-150.0,0.00041773,2]
[340148180,1728679870076,-254.07630985,0.00041773,2]
[340148181,1728679870086,-150.0,0.00041778,2]
[340148182,1728679870095,-150.0,0.00041783,2]
[340148183,1728679870105,-151.0,0.00041787,14]
[340148184,1728679870114,-227.855447,0.00041787,14]
[340148185,1728679870124,-227.855447,0.00041787,14]
[340148186,1728679870133,-151.0,0.00041787,14]
[340148187,1728679870143,-151.0,0.00041787,14]
[340148188,1728679870152,-151.0,0.00041787,14]
[340148189,1728679870161,-151.0,0.00041787,14]
[340148190,1728679870171,-151.0,0.00041787,14]
[340148191,1728679870179,-359.39455729,0.00041787,2]
[340148192,1728679870193,-1640.60544271,0.00041787,2]
[340148193,1728679870202,-2000.0,0.00041787,2]
[340148194,1728679870211,-2000.0,0.00041787,2]
[340148195,1728679870220,-2000.0,0.00041787,2]
[340148196,1728679870230,-150.0,0.00041793,2]
[340148197,1728679870240,-150.0,0.00041797,2]
[340148198,1728679870249,-150.0,0.00041815,2]
[340148199,1728679870258,-150.0,0.00041822,2]
[340148200,1728679870267,-150.0,0.00041822,2]
[340148201,1728679870276,-150.0,0.00041831,2]
[340148202,1728679870285,-138.9896181,0.00041847,30]
[340148203,1728679870297,-11.0103819,0.00041847,30]
[340148204,1728679870306,-150.0,0.00041864,2]
[340148205,1728679870315,-150.0,0.00041867,2]
[340148206,1728679870324,-100.738929,0.00041867,2]
[340148207,1728679870339,-49.261071,0.00041867,2]
[340148208,1728679870349,-150.0,0.00041867,2]
[340148209,1728679870358,-150.0,0.00041868,2]
[340148210,1728679870367,-150.0,0.00041875,2]
[340148211,1728679870378,-150.0,0.00041877,2]
[340148212,1728679870388,-150.0,0.00041879,2]
[340148213,1728679870397,-150.0,0.00041883,2]
[340148214,1728679870407,-150.0,0.00041883,2]
[340148215,1728679870418,-300.0,0.00041888,2]
[340148216,1728679870428,-299.999999,0.000419,2]
[340148217,1728679870437,-150.0,0.00041906,2]
[340148218,1728679870447,-100.5148953,0.00041906,2]
[340148219,1728679870459,-49.4851047,0.00041906,2]
[340148220,1728679870468,-217.0,0.0004191,30]
[340148221,1728679870478,-150.0,0.0004191,2]
[340148222,1728679870488,-150.0,0.0004191,2]
[340148223,1728679870498,-93.48589531,0.00041911,2]
[340148224,1728679870511,-56.51410469,0.00041911,2]
[340148225,1728679870520,-150.0,0.00041912,2]
[340148226,1728679870529,-150.0,0.00041916,2]
[340148227,1728679870539,-150.0,0.00041917,2]
[340148228,1728679870549,-150.0,0.00041919,2]
[340148229,1728679870558,-150.0,0.00041923,2]
[340148230,1728679870568,-150.0,0.0004193,2]
[340148231,1728679870577,-150.0,0.00041936,2]
[340148232,1728679870587,-150.0,0.00041939,2]
[340148233,1728679870596,-615.5676182,0.00041942,2]
[340148234,1728679870607,-500.24043481,0.00041942,2]
[340148235,1728679870618,-900.3451503,0.00041942,2]
[340148236,1728679870629,-370.72406632,0.00041942,2]
[340148237,1728679870640,-1605.35180376,0.00041942,2]
[340148238,1728679870655,-500.0,0.00038082,2]
[340148239,1728679870664,-3578.9714258,0.00041942,2]
[340148240,1728679870675,-1323.34911343,0.00041942,2]
[340148241,1728679870688,-8946.87432298,0.00041942,2]
[340148242,1728679870698,-187.0,0.00041942,14]
[340148243,1728679870707,-176.238973,0.00041942,14]
[340148244,1728679870717,-176.238973,0.00041942,14]
[340148245,1728679870727,-228.738173,0.00041942,14]
[340148246,1728679870736,-228.738173,0.00041942,14]
[340148247,1728679870745,-6394.74868651,0.00041942,2]
[340148248,1728679870757,-7483.98605945,0.00041942,2]
[340148249,1728679870768,-445.70504057,0.00041942,2]
[340148250,1728679870779,-676.13840354,0.00041942,2]
[340148251,1728679870790,-2395.78653728,0.00041942,2]
[340148252,1728679870801,-3354.44199665,0.00041942,2]
[340148253,1728679870810,-16556.6982705,0.00041942,2]
[340148254,1728679870819,-169.788904,0.00041942,14]
[340148255,1728679870828,-151.0,0.00041942,14]
[340148256,1728679870837,-151.0,0.00041942,14]
[340148257,1728679870846,-151.0,0.00041942,14]
[340148258,1728679870855,-151.0,0.00041942,14]
[340148259,1728679870863,-210.518869,0.00041942,14]
[340148260,1728679870873,-151.0,0.00041942,14]
[340148261,1728679870882,-151.0,0.00041942,14]
[340148262,1728679870891,-151.0,0.00041942,14]
[340148263,1728679870900,-151.0,0.00041942,14]
[340148264,1728679870909,-331.225246,0.00041942,14]
[340148265,1728679870918,-331.225246,0.00041942,14]
[340148266,1728679870927,-306.97814,0.00041942,14]
[340148267,1728679870937,-306.97814,0.00041942,14]
[340148268,1728679870956,-298.40764,0.00041942,14]
[340148269,1728679870966,-151.0,0.00041942,14]
[340148270,1728679870975,-151.0,0.00041942,14]
[340148271,1728679870984,-926.335156,0.00041942,14]
[340148272,1728679870994,-151.0,0.00041942,14]
[340148273,1728679871003,-320.292292,0.00041942,14]
[340148274,1728679871012,-926.335156,0.00041942,14]
[340148275,1728679871021,-320.292292,0.00041942,14]
[340148276,1728679871031,-151.0,0.00041942,14]
[340148277,1728679871040,-150.0,0.00041952,2]
[340148278,1728679871050,-118.99323195,0.00041955,2]
[340148279,1728679871062,-31.00676805,0.00041955,2]
[340148280,1728679871072,-150.0,0.00041959,2]
[340148281,1728679871082,-150.0,0.00041968,2]
[340148282,1728679871091,-6564.4132796,0.00041971,2]
[340148283,1728679871101,-5905.8573224,0.00041971,2]
[340148284,1728679871110,-16106.1027828,0.00041971,2]
[340148285,1728679871121,-2088.8715759,0.00041971,2]
[340148286,1728679871131,-340.06350207,0.00041971,2]
[340148287,1728679871143,-540.18423313,0.00041971,2]
[340148288,1728679871152,-579.7662343,0.00041971,2]
[340148289,1728679871162,-579.7662343,0.00041971,2]
[340148290,1728679871171,-4001.17853792,0.00041971,2]
[340148291,1728679871183,-905.1314589,0.00041971,2]
[340148292,1728679871197,-741.56502725,0.00041971,2]
[340148293,1728679871208,-1598.31428799,0.00041971,2]
[340148294,1728679871220,-735.896,0.00041971,2]
[340148295,1728679871231,-610.20934057,0.00041971,2]
[340148296,1728679871242,-152.06801347,0.00041971,2]
[340148297,1728679871251,-171.82475,0.00041971,14]
[340148298,1728679871261,-151.0,0.00041971,14]
[340148299,1728679871270,-291.612224,0.00041971,14]
[340148300,1728679871279,-151.0,0.00041971,14]
[340148301,1728679871288,-1874.39077939,0.00041971,2]
[340148302,1728679871300,-5102.58009961,0.00041971,2]
[340148303,1728679871309,-197.273996,0.00041971,14]
[340148304,1728679871319,-151.0,0.00041971,14]
[340148305,1728679871328,-151.0,0.00041971,14]
[340148306,1728679871337,-194.9515538,0.0004198,2]
[340148307,1728679871346,-150.0,0.00041987,2]
[340148308,1728679871356,-150.0,0.00041988,2]
[340148309,1728679871365,-210.0,0.0004199,30]
[340148310,1728679871374,-150.64618024,0.00041997,30]
[340148311,1728679871384,-256.62177911,0.00041997,30]
[340148312,1728679871394,-159.35920787,0.00041997,30]
[340148313,1728679871404,-156.24402533,0.00041997,30]
[340148314,1728679871413,-157.76152623,0.00041997,30]
[340148315,1728679871422,-1000.0,0.00041999,120]
[340148316,1728679871432,-2010.09943563,0.00042,42]